[Event "47th GRE-chT 2019"]
[Site "Patra"]
[Date "2019.07.05"]
[Round "6.4"]
[White "Georgiadis, Ioannis"]
[Black "Papadopoulos, Panayotis"]
[Result "1-0"]
[ECO "B32"]
[WhiteElo "2476"]
[BlackElo "2165"]
[Annotator "ChessBase"]
[PlyCount "89"]
[EventDate "2019.07.02"]
[EventCountry "GRE"]
[SourceTitle "playchess.com"]
[Source "ChessBase"]
[SourceQuality "1"]
[TimeControl "5400+30"]

1. e4 {[%emt 0:00:00]} c5 {[%emt 0:00:00]} 2. Nf3 {[%emt 0:00:00]} Nc6 {[%emt 0:00:00]} 3. d4 {[%emt 0:00:00]} cxd4 {[%emt 0:00:00]} 4. Nxd4 {[%emt 0:00:00]} e5 {[%emt 0:00:16]} 5. Nb5 {[%emt 0:00:00]} d6 {[%emt 0:01:45]} 6. N1c3 {[%emt 0:00:00]} a6 {[%emt 0:00:03]} 7. Na3 {[%emt 0:00:01]} Be6 {[%emt 0:00:29]} 8. Nc4 {[%emt 0:00:06]} Rb8 {[%emt 0:02:10]} 9. g3 {[%emt 0:02:05]} Be7 {[%emt 0:05:29]} 10. Ne3 {[%emt 0:02:50]} Nf6 {[%emt 0:00:17]} 11. Bg2 {[%emt 0:00:06]} h5 {[%emt 0:01:10]} 12. O-O {[%emt 0:01:28]} Nd4 {[%emt 0:03:17]} 13. Ncd5 {[%emt 0:02:20]} Nxd5 {[%emt 0:00:42]} 14. Nxd5 {[%emt 0:03:09]} Bg4 {[%emt 0:01:05]} 15. f3 {[%emt 0:00:04]} Be6 {[%emt 0:05:56]} 16. Nxe7 {[%emt 0:00:52]} Qxe7 {[%emt 0:04:30]} 17. Be3 {[%emt 0:00:39]} Nc6 {[%emt 0:06:37]} 18. f4 {[%emt 0:24:59]} Qc7 {[%emt 0:04:39]} 19. f5 {[%emt 0:00:10]} Bc4 {[%emt 0:00:05]} 20. Rf2 {[%emt 0:00:16]} f6 {[%emt 0:00:33]} 21. Rd2 {[%emt 0:00:41]} Rd8 {[%emt 0:01:14]} 22. Qf3 {[%emt 0:06:24]} Ne7 {[%emt 0:08:09]} 23. Rad1 {[%emt 0:09:42]} Qc6 {[%emt 0:13:37]} 24. b3 {[%emt 0:01:19]} Bf7 {[%emt 0:01:48]} 25. c4 {[%emt 0:07:29]} Nc8 {[%emt 0:05:24]} 26. h3 {[%emt 0:02:13]} Ke7 {[%emt 0:08:23]} 27. Qf2 {[%emt 0:08:09]} b6 {[%emt 0:01:22]} 28. Rc2 {[%emt 0:03:50]} a5 {[%emt 0:04:15]} 29. Rdc1 {[%emt 0:07:11]} Qb7 {[%emt 0:06:19]} 30. a3 {[%emt 0:01:45]} Be8 {[%emt 0:00:51]} 31. Rb2 {[%emt 0:00:21]} Bc6 {[%emt 0:00:05]} 32. Qc2 {[%emt 0:03:09]} Rhg8 {[%emt 0:01:15]} 33. b4 {[%emt 0:00:39]} axb4 {[%emt 0:00:05]} 34. axb4 {[%emt 0:00:43]} g6 {[%emt 0:01:02]} 35. b5 {[%emt 0:02:49]} Bd7 {[%emt 0:00:08]} 36. Qf2 {[%emt 0:04:22]} Kf7 {[%emt 0:00:44]} 37. Ra2 {[%emt 0:01:28]} Ne7 {[%emt 0:03:24]} 38. Rd1 {[%emt 0:06:37]} gxf5 {[%emt 0:00:57]} 39. exf5 {[%emt 0:00:12]} d5 {[%emt 0:00:00]} 40. Rxd5 {[%emt 0:00:00]} Qc8 {[%emt 0:00:00]} 41. Bxb6 {[%emt 0:00:00]} Qxc4 {[%emt 0:00:00]} 42. Rc5 {[%emt 0:00:00]} Qb3 {[%emt 0:00:00]} 43. Bxd8 {[%emt 0:00:00]} Rxd8 {[%emt 0:00:00]} 44. Rd2 {[%emt 0:00:00]} h4 {[%emt 0:00:00]} 45. g4 {[%emt 0:00:00]} 1-0

[Event "47th GRE-chT 2019"]
[Site "Patra"]
[Date "2019.07.05"]
[Round "6.4"]
[White "Liodakis, Konstantinos-Spyros"]
[Black "Korlotsidis, Spiridon"]
[Result "1-0"]
[ECO "B76"]
[WhiteElo "2212"]
[BlackElo "2055"]
[Annotator "NA"]
[PlyCount "73"]
[EventDate "2019.07.02"]
[EventCountry "GRE"]
[SourceTitle "playchess.com"]
[Source "ChessBase"]
[SourceQuality "1"]
[TimeControl "5400+30"]

1. e4 {[%emt 0:00:00]} c5 {[%emt 0:01:38]} 2. Nf3 {[%emt 0:00:00]} d6 {[%emt 0:03:02]} 3. d4 {[%emt 0:00:00]} cxd4 {[%emt 0:00:22]} 4. Nxd4 {[%emt 0:00:00]} Nf6 {[%emt 0:00:26]} 5. Nc3 {[%emt 0:00:00]} g6 {[%emt 0:01:02]} 6. Be3 {[%emt 0:00:00]} Bg7 {[%emt 0:00:19]} 7. f3 {[%emt 0:00:04]} Nc6 {[%emt 0:06:44]} 8. Qd2 {[%emt 0:00:36]} O-O {[%emt 0:00:14]} 9. O-O-O {[%emt 0:00:03]} Nxd4 {[%emt 0:07:01]} 10. Bxd4 {[%emt 0:00:10]} Be6 {[%emt 0:00:06]} 11. g4 {[%emt 0:02:48]} Qa5 {[%emt 0:07:43]} 12. Kb1 {[%emt 0:00:30]} Rfc8 {[%emt 0:08:32]} 13. a3 {[%emt 0:11:23]} a6 {[%emt 0:12:52]} 14. h4 {[%emt 0:08:23]} b5 {[%emt 0:12:37]} 15. h5 {[%emt 0:17:19]} b4 {[%emt 0:09:23]} 16. Ne2 {[%emt 0:07:03]} Qa4 {[%emt 0:05:46]} 17. Nc1 {[%emt 0:06:35]} bxa3 {[%emt 0:06:35]} 18. b3 {[%emt 0:00:33]} Rab8 {[%emt 0:02:21]} 19. Rh2 {[%emt 0:09:14]} a2+ {[%emt 0:04:27]} 20. Ka1 {[%emt 0:01:10]} Qa3 {[%emt 0:05:38]} 21. h6 {[%emt 0:04:17]} Bh8 {[%emt 0:01:19]} 22. g5 {[%emt 0:00:09]} Nd7 {[%emt 0:00:37]} 23. Bxh8 {[%emt 0:00:06]} Kxh8 {[%emt 0:00:04]} 24. Qd4+ {[%emt 0:07:58]} f6 {[%emt 0:00:25]} 25. gxf6 {[%emt 0:01:18]} Nxf6 {[%emt 0:00:12]} 26. Rhd2 {[%emt 0:05:42]} Qc5 {[%emt 0:00:21]} 27. Qb2 {[%emt 0:01:13]} Qh5 {[%emt 0:01:44]} 28. Rxd6 {[%emt 0:00:55]} Qxf3 {[%emt 0:01:10]} 29. Rxe6 {[%emt 0:00:16]} Qxd1 {[%emt 0:00:34]} 30. Rxf6 {[%emt 0:00:10]} Kg8 {[%emt 0:00:56]} 31. Rxg6+ {[%emt 0:00:30]} Kf8 {[%emt 0:00:24]} 32. Rg8+ {[%emt 0:03:50]} Kf7 {[%emt 0:00:18]} 33. Rxc8 {[%emt 0:02:52]} Rxc8 {[%emt 0:00:13]} 34. Bc4+ {[%emt 0:00:22]} Ke8 {[%emt 0:00:52]} 35. Be6 {[%emt 0:00:30]} Rc3 {[%emt 0:00:58]} 36. Qxc3 {[%emt 0:00:31]} Qxc1+ {[%emt 0:00:22]} 37. Kxa2 1-0

[Event "47th GRE-chT 2019"]
[Site "Patra"]
[Date "2019.07.05"]
[Round "6.5"]
[White "Michna, Marta"]
[Black "Antova, Gabriela"]
[Result "1-0"]
[ECO "A00"]
[WhiteElo "2358"]
[BlackElo "2257"]
[Annotator "NA"]
[PlyCount "117"]
[EventDate "2019.07.02"]
[EventCountry "GRE"]
[SourceTitle "playchess.com"]
[Source "ChessBase"]
[SourceQuality "1"]
[TimeControl "5400+30"]

1. b4 {[%emt 0:00:00]} d5 {[%emt 0:03:24]} 2. Bb2 {[%emt 0:00:00]} Nf6 {[%emt 0:00:30]} 3. e3 {[%emt 0:00:19]} g6 {[%emt 0:05:32]} 4. Nf3 {[%emt 0:04:54]} Bg7 {[%emt 0:00:16]} 5. c4 {[%emt 0:00:21]} c6 {[%emt 0:04:30]} 6. Qb3 {[%emt 0:06:12]} O-O {[%emt 0:08:53]} 7. Nc3 {[%emt 0:10:15]} a5 {[%emt 0:04:01]} 8. b5 {[%emt 0:03:39]} dxc4 {[%emt 0:16:32]} 9. Bxc4 {[%emt 0:00:07]} Nbd7 {[%emt 0:00:06]} 10. Na4 {[%emt 0:08:02]} Ne4 {[%emt 0:08:39]} 11. Bxg7 {[%emt 0:00:39]} Kxg7 {[%emt 0:00:02]} 12. bxc6 {[%emt 0:03:25]} bxc6 {[%emt 0:00:20]} 13. O-O {[%emt 0:00:57]} e5 {[%emt 0:12:34]} 14. Qc2 {[%emt 0:10:25]} Nef6 {[%emt 0:04:00]} 15. Be2 {[%emt 0:05:26]} Bb7 {[%emt 0:06:30]} 16. Rab1 {[%emt 0:06:42]} Qc7 {[%emt 0:01:10]} 17. Nc5 {[%emt 0:02:22]} Nxc5 {[%emt 0:01:12]} 18. Qxc5 {[%emt 0:00:03]} Nd7 {[%emt 0:00:45]} 19. Qc3 {[%emt 0:01:58]} Ba6 {[%emt 0:03:16]} 20. Bxa6 {[%emt 0:01:11]} Rxa6 {[%emt 0:00:02]} 21. Rfc1 {[%emt 0:07:31]} Rc8 {[%emt 0:01:56]} 22. d4 {[%emt 0:07:17]} exd4 {[%emt 0:01:26]} 23. Nxd4 {[%emt 0:06:39]} Kg8 {[%emt 0:00:26]} 24. Qc4 {[%emt 0:00:06]} Rb6 {[%emt 0:06:47]} 25. Rxb6 {[%emt 0:00:44]} Nxb6 {[%emt 0:00:07]} 26. Qc5 {[%emt 0:00:34]} Nd7 {[%emt 0:00:44]} 27. Qxc6 {[%emt 0:01:20]} Qxc6 {[%emt 0:00:09]} 28. Rxc6 {[%emt 0:01:28]} Rb8 {[%emt 0:00:56]} 29. Kf1 {[%emt 0:03:11]} Rb1+ {[%emt 0:00:36]} 30. Ke2 {[%emt 0:00:12]} h5 {[%emt 0:03:40]} 31. Rc2 {[%emt 0:00:26]} Nf6 {[%emt 0:03:26]} 32. Nb3 {[%emt 0:01:31]} a4 {[%emt 0:00:05]} 33. Nc5 {[%emt 0:00:11]} a3 {[%emt 0:00:36]} 34. Nd3 {[%emt 0:00:05]} Nd5 {[%emt 0:01:06]} 35. e4 {[%emt 0:00:42]} Nb4 {[%emt 0:00:45]} 36. Nxb4 {[%emt 0:00:07]} Rxb4 {[%emt 0:00:01]} 37. Kd3 {[%emt 0:00:06]} Kg7 {[%emt 0:00:58]} 38. h4 {[%emt 0:02:36]} f6 {[%emt 0:01:31]} 39. f4 {[%emt 0:00:40]} f5 {[%emt 0:00:27]} 40. Rc7+ {[%emt 0:00:00]} Kh6 {[%emt 0:00:00]} 41. Re7 {[%emt 0:00:00]} fxe4+ {[%emt 0:00:00]} 42. Rxe4 {[%emt 0:00:00]} Rb2 {[%emt 0:00:00]} 43. Re2 {[%emt 0:00:00]} Rb4 {[%emt 0:00:00]} 44. g3 {[%emt 0:00:00]} Rb7 {[%emt 0:00:00]} 45. Rc2 {[%emt 0:00:00]} Kg7 {[%emt 0:00:00]} 46. Rc3 {[%emt 0:00:00]} Ra7 {[%emt 0:00:00]} 47. Rc6 {[%emt 0:00:00]} Ra4 {[%emt 0:01:28]} 48. Kc3 {[%emt 0:00:00]} Kf7 {[%emt 0:00:53]} 49. Kb3 {[%emt 0:00:00]} Ra8 {[%emt 0:00:16]} 50. Kb4 {[%emt 0:00:00]} Re8 {[%emt 0:00:48]} 51. Rc3 {[%emt 0:00:00]} Re2 {[%emt 0:01:57]} 52. Kxa3 {[%emt 0:00:00]} Kf6 {[%emt 0:00:01]} 53. Kb3 {[%emt 0:00:00]} Kf5 {[%emt 0:00:04]} 54. Rc5+ {[%emt 0:00:00]} Kf6 {[%emt 0:01:01]} 55. a4 {[%emt 0:00:00]} Re1 {[%emt 0:00:42]} 56. a5 {[%emt 0:00:04]} Ra1 {[%emt 0:00:52]} 57. Kb4 {[%emt 0:00:30]} Rb1+ {[%emt 0:00:16]} 58. Ka4 {[%emt 0:00:21]} Rb2 {[%emt 0:00:33]} 59. a6 {[%emt 0:00:19]} 1-0

[Event "47th GRE-chT 2019"]
[Site "Patra"]
[Date "2019.07.05"]
[Round "6.5"]
[White "Grapsa, Georgia"]
[Black "Botsari, Anna-Maria"]
[Result "1/2-1/2"]
[ECO "C77"]
[WhiteElo "2038"]
[BlackElo "2233"]
[Annotator "NA"]
[PlyCount "26"]
[EventDate "2019.07.02"]
[EventCountry "GRE"]
[SourceTitle "playchess.com"]
[Source "ChessBase"]
[SourceQuality "1"]
[TimeControl "5400+30"]

1. e4 {[%emt 0:00:00]} e5 {[%emt 0:00:06]} 2. Nf3 {[%emt 0:00:00]} Nc6 {[%emt 0:00:05]} 3. Bb5 {[%emt 0:00:00]} a6 {[%emt 0:00:03]} 4. Ba4 {[%emt 0:00:00]} Nf6 {[%emt 0:00:06]} 5. O-O {[%emt 0:00:00]} b5 {[%emt 0:00:05]} 6. Bb3 {[%emt 0:00:00]} Be7 {[%emt 0:00:03]} 7. d3 {[%emt 0:00:00]} d6 {[%emt 0:00:06]} 8. c3 {[%emt 0:00:01]} O-O {[%emt 0:00:03]} 9. Nbd2 {[%emt 0:00:04]} Re8 {[%emt 0:00:03]} 10. Ng5 {[%emt 0:00:03]} Rf8 {[%emt 0:00:03]} 11. Ngf3 {[%emt 0:00:05]} Re8 {[%emt 0:00:01]} 12. Ng5 {[%emt 0:00:04]} Rf8 {[%emt 0:00:02]} 13. Ngf3 {[%emt 0:00:04]} Re8 {[%emt 0:00:01]} 1/2-1/2

[Event "47th GRE-chT 2019"]
[Site "Patra"]
[Date "2019.07.05"]
[Round "6.6"]
[White "Avramidou, Anastasia"]
[Black "Petraki, Evaggelia"]
[Result "1-0"]
[ECO "E60"]
[WhiteElo "2260"]
[BlackElo "1785"]
[Annotator "NA"]
[PlyCount "57"]
[EventDate "2019.07.02"]
[EventCountry "GRE"]
[SourceTitle "playchess.com"]
[Source "ChessBase"]
[SourceQuality "1"]
[TimeControl "5400+30"]

1. Nf3 {[%emt 0:00:00]} Nf6 {[%emt 0:00:00]} 2. c4 {[%emt 0:00:43]} c5 {[%emt 0:00:00]} 3. g3 {[%emt 0:00:36]} g6 {[%emt 0:00:17]} 4. Bg2 {[%emt 0:00:19]} Bg7 {[%emt 0:00:37]} 5. O-O {[%emt 0:00:04]} O-O {[%emt 0:00:14]} 6. d4 {[%emt 0:01:42]} d6 {[%emt 0:06:11]} 7. b3 {[%emt 0:06:20]} Qc7 {[%emt 0:02:04]} 8. Bb2 {[%emt 0:03:20]} Nbd7 {[%emt 0:02:33]} 9. Nc3 {[%emt 0:01:09]} a6 {[%emt 0:03:50]} 10. Qd2 {[%emt 0:02:19]} b6 {[%emt 0:05:44]} 11. d5 {[%emt 0:01:19]} Rb8 {[%emt 0:00:07]} 12. a4 {[%emt 0:04:46]} Rd8 {[%emt 0:15:46]} 13. Rae1 {[%emt 0:03:27]} Nf8 {[%emt 0:00:23]} 14. e4 {[%emt 0:00:49]} e5 {[%emt 0:09:41]} 15. Nh4 {[%emt 0:04:54]} Qe7 {[%emt 0:21:10]} 16. Kh1 {[%emt 0:03:44]} Bd7 {[%emt 0:00:11]} 17. f4 {[%emt 0:03:38]} exf4 {[%emt 0:04:53]} 18. Nf5 {[%emt 0:04:32]} Bxf5 {[%emt 0:00:07]} 19. exf5 {[%emt 0:02:39]} Qd7 {[%emt 0:05:50]} 20. Qxf4 {[%emt 0:10:18]} Qxf5 {[%emt 0:05:09]} 21. Qd2 {[%emt 0:03:58]} Qd7 {[%emt 0:07:24]} 22. Rxf6 {[%emt 0:00:07]} Bxf6 {[%emt 0:00:03]} 23. Ne4 {[%emt 0:08:31]} Bg7 {[%emt 0:01:07]} 24. Bxg7 {[%emt 0:03:50]} Kxg7 {[%emt 0:00:09]} 25. Qc3+ {[%emt 0:00:13]} Kh6 {[%emt 0:00:44]} 26. Nf6 {[%emt 0:00:35]} Qf5 {[%emt 0:00:05]} 27. Ng8+ {[%emt 0:01:15]} Kg5 {[%emt 0:00:21]} 28. h4+ {[%emt 0:00:44]} Kh5 {[%emt 0:00:14]} 29. g4+ {[%emt 0:00:41]} 1-0

[Event "47th GRE-chT 2019"]
[Site "Patra"]
[Date "2019.07.05"]
[Round "6.6"]
[White "Vozinaki, Anthi - Maria"]
[Black "Kokkota, Fotini"]
[Result "1-0"]
[ECO "B94"]
[WhiteElo "2054"]
[BlackElo "1664"]
[Annotator "NA"]
[PlyCount "65"]
[EventDate "2019.07.02"]
[EventCountry "GRE"]
[SourceTitle "playchess.com"]
[Source "ChessBase"]
[SourceQuality "1"]
[TimeControl "5400+30"]

1. e4 {[%emt 0:02:09]} c5 {[%emt 0:00:00]} 2. Nf3 {[%emt 0:00:05]} d6 {[%emt 0:00:00]} 3. d4 {[%emt 0:00:21]} cxd4 {[%emt 0:00:00]} 4. Nxd4 {[%emt 0:00:19]} Nf6 {[%emt 0:00:00]} 5. Nc3 {[%emt 0:00:05]} a6 {[%emt 0:00:01]} 6. Bg5 {[%emt 0:00:31]} Nbd7 {[%emt 0:00:20]} 7. f4 {[%emt 0:00:11]} Qc7 {[%emt 0:00:42]} 8. Qf3 {[%emt 0:00:18]} b5 {[%emt 0:01:25]} 9. O-O-O {[%emt 0:00:48]} Bb7 {[%emt 0:00:52]} 10. Bd3 {[%emt 0:01:24]} h6 {[%emt 0:04:44]} 11. Bh4 {[%emt 0:08:10]} e5 {[%emt 0:09:20]} 12. Nf5 {[%emt 0:09:07]} b4 {[%emt 0:20:03]} 13. Bxf6 {[%emt 0:09:34]} Nxf6 {[%emt 0:09:35]} 14. Nd5 {[%emt 0:06:08]} Nxd5 {[%emt 0:09:51]} 15. exd5 {[%emt 0:00:10]} g6 {[%emt 0:01:16]} 16. Ne3 {[%emt 0:04:24]} O-O-O {[%emt 0:09:48]} 17. f5 {[%emt 0:04:54]} gxf5 {[%emt 0:02:17]} 18. Qxf5+ {[%emt 0:08:58]} Kb8 {[%emt 0:00:42]} 19. Rhf1 {[%emt 0:03:50]} Rd7 {[%emt 0:08:37]} 20. Kb1 {[%emt 0:11:03]} Bc8 {[%emt 0:08:37]} 21. Rf3 {[%emt 0:07:12]} a5 {[%emt 0:04:38]} 22. Rg3 {[%emt 0:05:13]} Be7 {[%emt 0:02:55]} 23. Bb5 {[%emt 0:04:48]} Bh4 {[%emt 0:01:21]} 24. Rf3 {[%emt 0:08:06]} Re7 {[%emt 0:01:24]} 25. Qe4 {[%emt 0:00:54]} Bg5 {[%emt 0:00:56]} 26. Nf5 {[%emt 0:01:27]} Bxf5 {[%emt 0:00:57]} 27. Rxf5 {[%emt 0:00:19]} Qc5 {[%emt 0:02:05]} 28. Bc6 {[%emt 0:00:41]} Rg8 {[%emt 0:00:58]} 29. Re1 {[%emt 0:02:23]} Bd2 {[%emt 0:00:32]} 30. Ref1 {[%emt 0:00:38]} Rg7 {[%emt 0:00:20]} 31. R5f2 {[%emt 0:00:45]} Bf4 {[%emt 0:00:38]} 32. Rxf4 {[%emt 0:00:26]} f5 {[%emt 0:00:13]} 33. Rxf5 {[%emt 0:00:31]} 1-0

[Event "47th GRE-chT 2019"]
[Site "Patra"]
[Date "2019.07.05"]
[Round "6.7"]
[White "Dereka, Konstantina"]
[Black "Karavitaki, Evaggelia"]
[Result "0-1"]
[ECO "A61"]
[WhiteElo "1469"]
[BlackElo "1681"]
[Annotator "NA"]
[PlyCount "46"]
[EventDate "2019.07.02"]
[EventCountry "GRE"]
[SourceTitle "playchess.com"]
[Source "ChessBase"]
[SourceQuality "1"]
[TimeControl "5400+30"]

1. d4 {[%emt 0:00:00]} Nf6 {[%emt 0:00:00]} 2. c4 {[%emt 0:00:00]} e6 {[%emt 0:00:00]} 3. Nf3 {[%emt 0:00:00]} c5 {[%emt 0:00:28]} 4. d5 {[%emt 0:00:55]} exd5 {[%emt 0:00:14]} 5. cxd5 {[%emt 0:00:05]} d6 {[%emt 0:00:17]} 6. Nc3 {[%emt 0:00:05]} g6 {[%emt 0:01:27]} 7. e4 {[%emt 0:00:33]} Bg7 {[%emt 0:00:18]} 8. Bd3 {[%emt 0:00:25]} O-O {[%emt 0:02:01]} 9. O-O {[%emt 0:01:08]} Re8 {[%emt 0:04:32]} 10. Re1 {[%emt 0:01:19]} Bg4 {[%emt 0:20:31]} 11. h3 {[%emt 0:11:23]} Bxf3 {[%emt 0:01:54]} 12. Qxf3 {[%emt 0:00:30]} Nbd7 {[%emt 0:01:42]} 13. Bc2 {[%emt 0:05:16]} Ne5 {[%emt 0:09:17]} 14. Qg3 {[%emt 0:03:27]} a6 {[%emt 0:04:47]} 15. a4 {[%emt 0:01:36]} Rb8 {[%emt 0:02:20]} 16. a5 {[%emt 0:03:52]} Nc4 {[%emt 0:03:58]} 17. f4 {[%emt 0:16:35]} Nxa5 {[%emt 0:05:35]} 18. e5 {[%emt 0:03:33]} dxe5 {[%emt 0:06:02]} 19. fxe5 {[%emt 0:00:10]} Nh5 {[%emt 0:01:15]} 20. Qh2 {[%emt 0:04:07]} Nc4 {[%emt 0:03:42]} 21. e6 {[%emt 0:06:33]} fxe6 {[%emt 0:04:12]} 22. dxe6 {[%emt 0:02:10]} Qd4+ {[%emt 0:02:44]} 23. Kh1 {[%emt 0:00:47]} Be5 {[%emt 0:02:36]} 0-1

[Event "47th GRE-chT 2019"]
[Site "Patra"]
[Date "2019.07.05"]
[Round "6.7"]
[White "Tsivelekidou, Anthoula Elpida"]
[Black "Arapkoule, Eirini"]
[Result "1-0"]
[ECO "D32"]
[WhiteElo "1298"]
[BlackElo "1370"]
[Annotator "NA"]
[PlyCount "67"]
[EventDate "2019.07.02"]
[EventCountry "GRE"]
[SourceTitle "playchess.com"]
[Source "ChessBase"]
[SourceQuality "1"]
[TimeControl "5400+30"]

1. d4 {[%emt 0:00:00]} d5 {[%emt 0:00:00]} 2. c4 {[%emt 0:00:00]} e6 {[%emt 0:00:00]} 3. Nc3 {[%emt 0:00:00]} c5 {[%emt 0:00:09]} 4. cxd5 {[%emt 0:00:08]} exd5 {[%emt 0:00:16]} 5. dxc5 {[%emt 0:00:23]} d4 {[%emt 0:00:14]} 6. Ne4 {[%emt 0:01:01]} Bxc5 {[%emt 0:00:34]} 7. Qa4+ {[%emt 0:03:43]} Bd7 {[%emt 0:00:37]} 8. Qb3 {[%emt 0:00:51]} Be7 {[%emt 0:01:21]} 9. Nf3 {[%emt 0:04:35]} Bc6 {[%emt 0:03:42]} 10. Ng3 {[%emt 0:05:31]} Nf6 {[%emt 0:01:31]} 11. Qc4 {[%emt 0:01:55]} Bd5 {[%emt 0:07:06]} 12. Qxd4 {[%emt 0:07:36]} Nc6 {[%emt 0:00:58]} 13. Qd1 {[%emt 0:00:34]} O-O {[%emt 0:00:57]} 14. e3 {[%emt 0:06:11]} Bxf3 {[%emt 0:06:34]} 15. Qxd8 {[%emt 0:04:23]} Raxd8 {[%emt 0:00:18]} 16. gxf3 {[%emt 0:00:20]} Bb4+ {[%emt 0:00:10]} 17. Ke2 {[%emt 0:00:26]} Rfe8 {[%emt 0:00:39]} 18. Bg2 {[%emt 0:00:54]} Nd4+ {[%emt 0:00:11]} 19. Kf1 {[%emt 0:00:06]} Nc2 {[%emt 0:00:10]} 20. Rb1 {[%emt 0:00:27]} Nd4 {[%emt 0:09:40]} 21. a3 {[%emt 0:01:56]} Rc8 {[%emt 0:12:08]} 22. axb4 {[%emt 0:05:49]} Nb3 {[%emt 0:00:09]} 23. Ne2 {[%emt 0:02:33]} Rc2 {[%emt 0:02:37]} 24. e4 {[%emt 0:00:53]} Rd8 {[%emt 0:01:35]} 25. Ke1 {[%emt 0:03:56]} Nd2 {[%emt 0:11:56]} 26. Ra1 {[%emt 0:01:35]} Nb3 {[%emt 0:00:14]} 27. Rb1 {[%emt 0:02:56]} Nd2 {[%emt 0:01:22]} 28. Kd1 {[%emt 0:22:07]} Rxc1+ {[%emt 0:02:31]} 29. Rxc1 {[%emt 0:00:11]} Nb3+ {[%emt 0:00:13]} 30. Kc2 {[%emt 0:00:16]} Nxc1 {[%emt 0:01:29]} 31. Rxc1 {[%emt 0:00:27]} Kf8 {[%emt 0:02:00]} 32. Rd1 {[%emt 0:02:04]} Rc8+ {[%emt 0:01:36]} 33. Kb3 {[%emt 0:00:17]} Ke7 {[%emt 0:00:17]} 34. Nc3 {[%emt 0:00:15]} 1-0

[Event "47th GRE-chT 2019"]
[Site "Patra"]
[Date "2019.07.05"]
[Round "6.8"]
[White "Kouskoutis, Georgios-Alexandros"]
[Black "Tsaknakis, Zisis"]
[Result "1-0"]
[ECO "A36"]
[WhiteElo "2256"]
[BlackElo "2263"]
[Annotator "NA"]
[PlyCount "137"]
[EventDate "2019.07.02"]
[EventCountry "GRE"]
[SourceTitle "playchess.com"]
[Source "ChessBase"]
[SourceQuality "1"]
[TimeControl "5400+30"]

1. c4 {[%emt 0:00:00]} g6 {[%emt 0:00:00]} 2. g3 {[%emt 0:00:00]} Bg7 {[%emt 0:00:00]} 3. Bg2 {[%emt 0:01:39]} Nf6 {[%emt 0:00:00]} 4. Nc3 {[%emt 0:00:05]} O-O {[%emt 0:00:00]} 5. e4 {[%emt 0:00:12]} d6 {[%emt 0:00:00]} 6. Nge2 {[%emt 0:01:20]} c5 {[%emt 0:00:00]} 7. O-O {[%emt 0:00:01]} Nc6 {[%emt 0:00:03]} 8. d3 {[%emt 0:00:11]} Ne8 {[%emt 0:00:06]} 9. Be3 {[%emt 0:00:16]} Nd4 {[%emt 0:00:40]} 10. Rb1 {[%emt 0:01:31]} a5 {[%emt 0:10:49]} 11. a3 {[%emt 0:11:19]} a4 {[%emt 0:04:31]} 12. Bxd4 {[%emt 0:00:02]} cxd4 {[%emt 0:09:14]} 13. Nxa4 {[%emt 0:00:03]} Bd7 {[%emt 0:00:07]} 14. b3 {[%emt 0:00:45]} b5 {[%emt 0:04:36]} 15. cxb5 {[%emt 0:00:00]} Bxb5 {[%emt 0:04:07]} 16. Ra1 {[%emt 0:00:20]} Bxa4 {[%emt 0:00:01]} 17. bxa4 {[%emt 0:07:09]} Qd7 {[%emt 0:17:35]} 18. Qb3 {[%emt 0:15:55]} Qxa4 {[%emt 0:10:49]} 19. Rfb1 {[%emt 0:09:29]} e5 {[%emt 0:11:53]} 20. Bh3 {[%emt 0:09:25]} Nc7 {[%emt 0:01:35]} 21. Qxa4 {[%emt 0:00:00]} Rxa4 {[%emt 0:02:30]} 22. Bd7 {[%emt 0:01:45]} Ra6 {[%emt 0:10:27]} 23. Rb7 {[%emt 0:00:51]} Ne6 {[%emt 0:04:45]} 24. Bb5 {[%emt 0:00:01]} Ra5 {[%emt 0:03:07]} 25. a4 {[%emt 0:11:33]} Rfa8 {[%emt 0:02:04]} 26. Rb6 {[%emt 0:02:52]} Nc5 {[%emt 0:02:02]} 27. Bc6 {[%emt 0:05:50]} R8a7 {[%emt 0:00:08]} 28. Rb8+ {[%emt 0:00:05]} Bf8 {[%emt 0:00:52]} 29. Nc1 {[%emt 0:07:25]} Kg7 {[%emt 0:01:10]} 30. Nb3 {[%emt 0:00:01]} R5a6 {[%emt 0:01:09]} 31. Be8 {[%emt 0:00:00]} Ra8 {[%emt 0:00:26]} 32. Nxc5 {[%emt 0:00:04]} Rxb8 {[%emt 0:00:06]} 33. Nxa6 {[%emt 0:00:10]} Rxe8 {[%emt 0:00:20]} 34. a5 {[%emt 0:15:23]} d5 {[%emt 0:00:05]} 35. Nc7 {[%emt 0:00:01]} Re7 {[%emt 0:00:50]} 36. Nxd5 {[%emt 0:00:06]} Ra7 {[%emt 0:00:33]} 37. a6 {[%emt 0:00:01]} f5 {[%emt 0:00:52]} 38. Nc7 {[%emt 0:01:46]} fxe4 {[%emt 0:00:15]} 39. Nb5 {[%emt 0:00:01]} Ra8 {[%emt 0:00:00]} 40. dxe4 {[%emt 0:00:00]} d3 {[%emt 0:00:00]} 41. Kf1 {[%emt 0:00:00]} Kf7 {[%emt 0:00:00]} 42. a7 {[%emt 0:00:00]} Bc5 {[%emt 0:00:00]} 43. Ke1 {[%emt 0:00:00]} Ke7 {[%emt 0:00:00]} 44. Rc1 {[%emt 0:00:00]} Bb4+ {[%emt 0:00:00]} 45. Kd1 {[%emt 0:00:00]} Ba5 {[%emt 0:00:00]} 46. Rc5 {[%emt 0:00:00]} Bb6 {[%emt 0:00:00]} 47. Rxe5+ {[%emt 0:00:00]} Kf6 {[%emt 0:00:00]} 48. Rd5 {[%emt 0:00:00]} Bxf2 {[%emt 0:00:00]} 49. Rd7 {[%emt 0:00:00]} Be3 {[%emt 0:00:00]} 50. Rb7 {[%emt 0:00:00]} Rc8 {[%emt 0:00:06]} 51. Nc7 {[%emt 0:00:00]} Bxa7 {[%emt 0:00:44]} 52. Rxa7 {[%emt 0:00:00]} Ke5 {[%emt 0:00:28]} 53. Nb5 {[%emt 0:00:00]} Rb8 {[%emt 0:05:10]} 54. Na3 {[%emt 0:00:00]} Kxe4 {[%emt 0:01:36]} 55. Rxh7 {[%emt 0:01:33]} Rb2 {[%emt 0:00:11]} 56. Rh4+ {[%emt 0:01:23]} Kf3 {[%emt 0:00:15]} 57. Nc4 {[%emt 0:00:33]} Ra2 {[%emt 0:01:24]} 58. Rd4 {[%emt 0:03:24]} Kg2 {[%emt 0:00:35]} 59. Rxd3 {[%emt 0:00:01]} Kxh2 {[%emt 0:00:31]} 60. Nd2 {[%emt 0:01:09]} g5 {[%emt 0:00:22]} 61. Ne4 {[%emt 0:03:03]} Ra1+ {[%emt 0:00:15]} 62. Ke2 {[%emt 0:00:29]} g4 {[%emt 0:00:29]} 63. Ke3 {[%emt 0:00:13]} Rf1 {[%emt 0:00:23]} 64. Rd2+ {[%emt 0:00:14]} Kh3 {[%emt 0:00:29]} 65. Rf2 {[%emt 0:00:13]} Re1+ {[%emt 0:00:17]} 66. Kf4 {[%emt 0:01:52]} Rxe4+ {[%emt 0:00:04]} 67. Kxe4 {[%emt 0:00:03]} Kxg3 {[%emt 0:00:08]} 68. Ke3 {[%emt 0:00:04]} Kh3 {[%emt 0:00:10]} 69. Ke4 {[%emt 5:05:14]} 1-0